[Event "December 12 Early 2023"]
[Site "https://www.chess.com"]
[Date "2023.12.12"]
[Round "7"]
[White "Wu, Derek"]
[Black "Andrews, Todd"]
[Result "1-0"]
[Board "80"]
[TimeControl "180+1"]
[WhiteFideId "30914558"]
[BlackFideId "2012456"]
[WhiteElo "2695"]
[BlackElo "2502"]
[WhiteTeam "USA"]
[BlackTeam "USA"]
[WhiteClock "0:00:33"]
[BlackClock "0:00:09"]

1. e4 {[%clk 0:03:00]}  e6 {[%clk 0:02:59]} 2. d4 {[%clk 0:03:00]}  d5 {[%clk 0:03:00]} 3. Nc3 {[%clk 0:03:01]}  Bb4 {[%clk 0:03:00]} 4. e5 {[%clk 0:02:59]}  c5 {[%clk 0:03:01]} 5. a3 {[%clk 0:02:59]}  Bxc3+ {[%clk 0:03:02]} 6. bxc3 {[%clk 0:03:00]}  Ne7 {[%clk 0:03:02]} 7. h4 {[%clk 0:02:56]}  b6 {[%clk 0:03:01]} 8. h5 {[%clk 0:02:56]}  h6 {[%clk 0:03:01]} 9. Qg4 {[%clk 0:02:47]}  Kf8 {[%clk 0:02:42]} 10. a4 {[%clk 0:02:39]}  Ba6 {[%clk 0:02:42]} 11. Bb5 {[%clk 0:02:29]}  Bxb5 {[%clk 0:02:40]} 12. axb5 {[%clk 0:02:30]}  a5 {[%clk 0:02:31]} 13. Ba3 {[%clk 0:02:26]}  Nd7 {[%clk 0:02:30]} 14. Rh3 {[%clk 0:02:20]}  Qc7 {[%clk 0:02:23]} 15. Rf3 {[%clk 0:02:18]}  Nf5 {[%clk 0:02:16]} 16. Qf4 {[%clk 0:02:17]}  f6 {[%clk 0:01:50]} 17. g4 {[%clk 0:01:53]}  fxe5 {[%clk 0:01:50]} 18. Qd2 {[%clk 0:01:45]}  exd4 {[%clk 0:01:12]} 19. gxf5 {[%clk 0:01:41]}  Qe5+ {[%clk 0:01:12]} 20. Ne2 {[%clk 0:01:39]}  Qe4 {[%clk 0:00:59]} 21. Qf4 {[%clk 0:01:33]}  e5 {[%clk 0:00:57]} 22. Qg3 {[%clk 0:01:17]}  Nf6 {[%clk 0:00:40]} 23. cxd4 {[%clk 0:01:16]}  exd4 {[%clk 0:00:37]} 24. Kf1 {[%clk 0:01:10]}  Re8 {[%clk 0:00:32]} 25. Nf4 {[%clk 0:01:06]}  Nxh5 {[%clk 0:00:22]} 26. Nxh5 {[%clk 0:01:06]}  Rg8 {[%clk 0:00:16]} 27. Qd6+ {[%clk 0:01:02]}  Kf7 {[%clk 0:00:14]} 28. Qg6+ {[%clk 0:00:59]}  Kf8 {[%clk 0:00:13]} 29. Qg3 {[%clk 0:00:38]}  Qxc2 {[%clk 0:00:12]} 30. Qd6+ {[%clk 0:00:33]}  Kf7 {[%clk 0:00:11]} 31. Qg6+ {[%clk 0:00:32]}  Kf8 {[%clk 0:00:12]} 32. Qxb6 {[%clk 0:00:33]}  Qe2+ {[%clk 0:00:11]} 33. Kg2 {[%clk 0:00:33]}  Qe4 {[%clk 0:00:09]} 34. Bxc5+ {[%clk 0:00:33]}  Kf7 {[%clk 0:00:09]} 35. Qg6# {[%clk 0:00:33]} 1-0

[Event "December 12 Early 2023"]
[Site "https://www.chess.com"]
[Date "2023.12.12"]
[Round "7"]
[White "Timerkhanov, Alexander"]
[Black "Azali, Tannaz"]
[Result "1-0"]
[Board "82"]
[TimeControl "180+1"]
[WhiteFideId "24177938"]
[BlackFideId "12537721"]
[WhiteElo "2661"]
[BlackElo "2501"]
[WhiteTeam "RUS"]
[BlackTeam "IRI"]
[WhiteClock "0:00:15"]
[BlackClock "0:00:17"]

1. d4 {[%clk 0:03:00]}  Nf6 {[%clk 0:02:59]} 2. Bg5 {[%clk 0:03:00]}  d5 {[%clk 0:02:58]} 3. Nd2 {[%clk 0:03:00]}  e6 {[%clk 0:02:48]} 4. e3 {[%clk 0:02:59]}  Be7 {[%clk 0:02:47]} 5. f4 {[%clk 0:02:59]}  O-O {[%clk 0:02:47]} 6. Bxf6 {[%clk 0:02:57]}  Bxf6 {[%clk 0:02:47]} 7. Bd3 {[%clk 0:02:57]}  c5 {[%clk 0:02:46]} 8. c3 {[%clk 0:02:57]}  Nc6 {[%clk 0:02:46]} 9. Ngf3 {[%clk 0:02:57]}  b6 {[%clk 0:02:46]} 10. O-O {[%clk 0:02:57]}  g6 {[%clk 0:02:45]} 11. Qe2 {[%clk 0:02:50]}  Bb7 {[%clk 0:02:45]} 12. g4 {[%clk 0:02:47]}  Bg7 {[%clk 0:02:44]} 13. h4 {[%clk 0:02:46]}  f6 {[%clk 0:02:34]} 14. h5 {[%clk 0:02:44]}  e5 {[%clk 0:02:24]} 15. dxe5 {[%clk 0:02:37]}  fxe5 {[%clk 0:02:24]} 16. hxg6 {[%clk 0:02:25]}  e4 {[%clk 0:02:23]} 17. Nxe4 {[%clk 0:02:25]}  dxe4 {[%clk 0:02:21]} 18. Bc4+ {[%clk 0:02:20]}  Kh8 {[%clk 0:02:18]} 19. Ng5 {[%clk 0:02:20]}  h6 {[%clk 0:02:09]} 20. Nf7+ {[%clk 0:01:55]}  Rxf7 {[%clk 0:02:09]} 21. gxf7 {[%clk 0:01:52]}  Na5 {[%clk 0:02:06]} 22. Be6 {[%clk 0:01:49]}  Qh4 {[%clk 0:02:06]} 23. Kg2 {[%clk 0:01:45]}  Nc6 {[%clk 0:01:56]} 24. Rad1 {[%clk 0:01:41]}  Qe7 {[%clk 0:01:52]} 25. Bd5 {[%clk 0:01:00]}  Rd8 {[%clk 0:01:46]} 26. g5 {[%clk 0:00:58]}  Na5 {[%clk 0:01:35]} 27. Bxb7 {[%clk 0:00:53]}  Nxb7 {[%clk 0:01:36]} 28. gxh6 {[%clk 0:00:52]}  Bf6 {[%clk 0:01:36]} 29. Qh5 {[%clk 0:00:51]}  Rf8 {[%clk 0:01:33]} 30. Rd5 {[%clk 0:00:46]}  Qxf7 {[%clk 0:01:27]} 31. Qxf7 {[%clk 0:00:40]}  Rxf7 {[%clk 0:01:28]} 32. Rfd1 {[%clk 0:00:41]}  Kh7 {[%clk 0:01:12]} 33. Rd7 {[%clk 0:00:40]}  Nd8 {[%clk 0:01:08]} 34. Rxd8 {[%clk 0:00:29]}  Bxd8 {[%clk 0:01:08]} 35. Rxd8 {[%clk 0:00:29]}  Kxh6 {[%clk 0:01:08]} 36. Re8 {[%clk 0:00:30]}  Rd7 {[%clk 0:01:01]} 37. Rxe4 {[%clk 0:00:30]}  Rd2+ {[%clk 0:01:01]} 38. Kf3 {[%clk 0:00:30]}  Rxb2 {[%clk 0:01:02]} 39. a4 {[%clk 0:00:30]}  Kg6 {[%clk 0:00:59]} 40. Re6+ {[%clk 0:00:29]}  Kf7 {[%clk 0:00:59]} 41. Rc6 {[%clk 0:00:29]}  Rb3 {[%clk 0:00:54]} 42. Rc7+ {[%clk 0:00:26]}  Ke6 {[%clk 0:00:54]} 43. Rxa7 {[%clk 0:00:26]}  Rxc3 {[%clk 0:00:55]} 44. Ra6 {[%clk 0:00:27]}  Rb3 {[%clk 0:00:55]} 45. a5 {[%clk 0:00:27]}  Kd5 {[%clk 0:00:48]} 46. Rxb6 {[%clk 0:00:27]}  Ra3 {[%clk 0:00:48]} 47. a6 {[%clk 0:00:25]}  c4 {[%clk 0:00:48]} 48. Ke2 {[%clk 0:00:20]}  Ra2+ {[%clk 0:00:46]} 49. Kd1 {[%clk 0:00:20]}  Ke4 {[%clk 0:00:46]} 50. Rd6 {[%clk 0:00:18]}  Kxe3 {[%clk 0:00:46]} 51. f5 {[%clk 0:00:18]}  c3 {[%clk 0:00:41]} 52. f6 {[%clk 0:00:17]}  Rf2 {[%clk 0:00:35]} 53. a7 {[%clk 0:00:16]}  Rf1+ {[%clk 0:00:22]} 54. Kc2 {[%clk 0:00:16]}  Ra1 {[%clk 0:00:17]} 55. f7 {[%clk 0:00:15]} 1-0

[Event "December 12 Early 2023"]
[Site "https://www.chess.com"]
[Date "2023.12.12"]
[Round "7"]
[White "Iljin, Timofey"]
[Black "Kislinsky, Alexey"]
[Result "1/2-1/2"]
[Board "83"]
[TimeControl "180+1"]
[WhiteFideId "14110180"]
[BlackFideId "14108801"]
[WhiteElo "2500"]
[BlackElo "2649"]
[WhiteTeam "UKR"]
[BlackTeam "CZE"]
[WhiteClock "0:00:03"]
[BlackClock "0:00:03"]

1. e4 {[%clk 0:03:00]}  c5 {[%clk 0:02:59]} 2. c3 {[%clk 0:03:00]}  Nf6 {[%clk 0:02:59]} 3. e5 {[%clk 0:02:59]}  Nd5 {[%clk 0:02:59]} 4. d4 {[%clk 0:03:00]}  cxd4 {[%clk 0:03:00]} 5. Nf3 {[%clk 0:03:01]}  Nc6 {[%clk 0:02:57]} 6. cxd4 {[%clk 0:03:01]}  d6 {[%clk 0:02:57]} 7. Bc4 {[%clk 0:03:01]}  Nb6 {[%clk 0:02:52]} 8. Bxf7+ {[%clk 0:03:01]}  Kxf7 {[%clk 0:02:52]} 9. e6+ {[%clk 0:03:01]}  Kg8 {[%clk 0:02:47]} 10. d5 {[%clk 0:03:01]}  Nb4 {[%clk 0:02:45]} 11. Nc3 {[%clk 0:03:01]}  N4xd5 {[%clk 0:02:45]} 12. Nxd5 {[%clk 0:03:01]}  Bxe6 {[%clk 0:02:46]} 13. Nf4 {[%clk 0:03:01]}  Qd7 {[%clk 0:02:31]} 14. O-O {[%clk 0:02:58]}  Bf7 {[%clk 0:02:12]} 15. Ng5 {[%clk 0:02:51]}  e5 {[%clk 0:02:12]} 16. Nxf7 {[%clk 0:02:51]}  Qxf7 {[%clk 0:02:13]} 17. Nd3 {[%clk 0:02:52]}  h6 {[%clk 0:02:11]} 18. a4 {[%clk 0:02:49]}  Kh7 {[%clk 0:02:09]} 19. a5 {[%clk 0:02:34]}  Nd5 {[%clk 0:02:07]} 20. Qb3 {[%clk 0:02:34]}  Kg8 {[%clk 0:01:24]} 21. a6 {[%clk 0:02:23]}  b6 {[%clk 0:01:22]} 22. Bd2 {[%clk 0:02:20]}  e4 {[%clk 0:01:20]} 23. Nc1 {[%clk 0:01:59]}  Nf6 {[%clk 0:01:11]} 24. Qa4 {[%clk 0:01:55]}  Rc8 {[%clk 0:01:10]} 25. Ne2 {[%clk 0:01:54]}  Be7 {[%clk 0:00:56]} 26. Bc3 {[%clk 0:01:42]}  Qc4 {[%clk 0:00:52]} 27. Qd1 {[%clk 0:01:31]}  Kh7 {[%clk 0:00:45]} 28. Nd4 {[%clk 0:01:23]}  Rc5 {[%clk 0:00:29]} 29. Ra4 {[%clk 0:01:03]}  Qd5 {[%clk 0:00:29]} 30. Qe2 {[%clk 0:00:57]}  Rhc8 {[%clk 0:00:28]} 31. Rd1 {[%clk 0:00:55]}  Qh5 {[%clk 0:00:28]} 32. Qf1 {[%clk 0:00:48]}  Rd5 {[%clk 0:00:25]} 33. Re1 {[%clk 0:00:40]}  Bf8 {[%clk 0:00:20]} 34. Ne6 {[%clk 0:00:35]}  Qf7 {[%clk 0:00:17]} 35. Nf4 {[%clk 0:00:31]}  Rf5 {[%clk 0:00:16]} 36. Ne2 {[%clk 0:00:19]}  Nd5 {[%clk 0:00:14]} 37. Ng3 {[%clk 0:00:17]}  Nxc3 {[%clk 0:00:14]} 38. bxc3 {[%clk 0:00:17]}  Re5 {[%clk 0:00:14]} 39. Raxe4 {[%clk 0:00:16]}  Rxc3 {[%clk 0:00:15]} 40. Rxe5 {[%clk 0:00:15]}  dxe5 {[%clk 0:00:15]} 41. Rxe5 {[%clk 0:00:16]}  Bd6 {[%clk 0:00:16]} 42. Re1 {[%clk 0:00:10]}  Qc7 {[%clk 0:00:15]} 43. Qe2 {[%clk 0:00:07]}  Bxg3 {[%clk 0:00:14]} 44. hxg3 {[%clk 0:00:07]}  Rc4 {[%clk 0:00:14]} 45. Qd3+ {[%clk 0:00:06]}  g6 {[%clk 0:00:14]} 46. Qa3 {[%clk 0:00:06]}  Rc5 {[%clk 0:00:14]} 47. Qf3 {[%clk 0:00:05]}  Rf5 {[%clk 0:00:11]} 48. Qb7 {[%clk 0:00:03]}  Rf7 {[%clk 0:00:11]} 49. Qd5 {[%clk 0:00:02]}  h5 {[%clk 0:00:12]} 50. Qd3 {[%clk 0:00:02]}  Qd7 {[%clk 0:00:12]} 51. Qc2 {[%clk 0:00:02]}  Qf5 {[%clk 0:00:12]} 52. Qd2 {[%clk 0:00:02]}  b5 {[%clk 0:00:09]} 53. Re3 {[%clk 0:00:02]}  Qc5 {[%clk 0:00:09]} 54. Qe2 {[%clk 0:00:02]}  b4 {[%clk 0:00:08]} 55. Re5 {[%clk 0:00:02]}  Qc1+ {[%clk 0:00:08]} 56. Kh2 {[%clk 0:00:01]}  b3 {[%clk 0:00:08]} 57. Re7 {[%clk 0:00:02]}  Rxe7 {[%clk 0:00:04]} 58. Qxe7+ {[%clk 0:00:02]}  Kh6 {[%clk 0:00:04]} 59. f4 {[%clk 0:00:02]}  Qc3 {[%clk 0:00:01]} 60. Qg5+ {[%clk 0:00:02]}  Kg7 {[%clk 0:00:01]} 61. Qe7+ {[%clk 0:00:02]}  Kh6 {[%clk 0:00:02]} 62. Qg5+ {[%clk 0:00:02]}  Kg7 {[%clk 0:00:03]} 63. Qe7+ {[%clk 0:00:03]}  Kh6 {[%clk 0:00:03]} 1/2-1/2

[Event "December 12 Early 2023"]
[Site "https://www.chess.com"]
[Date "2023.12.12"]
[Round "7"]
[White "Seemann, Jakub"]
[Black "Shukhman, Anna"]
[Result "1-0"]
[Board "84"]
[TimeControl "180+1"]
[WhiteFideId "21874697"]
[BlackFideId "54180058"]
[WhiteElo "2642"]
[BlackElo "2487"]
[WhiteTeam "POL"]
[BlackTeam "FID"]
[WhiteClock "0:00:16"]
[BlackClock "0:00:04"]

1. d4 {[%clk 0:03:00]}  Nf6 {[%clk 0:02:58]} 2. c4 {[%clk 0:03:00]}  e6 {[%clk 0:02:58]} 3. Nf3 {[%clk 0:03:00]}  d5 {[%clk 0:02:56]} 4. cxd5 {[%clk 0:02:59]}  exd5 {[%clk 0:02:56]} 5. Qc2 {[%clk 0:03:00]}  Bd6 {[%clk 0:02:53]} 6. Bg5 {[%clk 0:02:58]}  c6 {[%clk 0:02:53]} 7. Nc3 {[%clk 0:02:56]}  h6 {[%clk 0:02:52]} 8. Bh4 {[%clk 0:02:53]}  O-O {[%clk 0:02:51]} 9. h3 {[%clk 0:02:53]}  Nbd7 {[%clk 0:02:47]} 10. e3 {[%clk 0:02:52]}  b5 {[%clk 0:02:42]} 11. Bd3 {[%clk 0:02:51]}  a5 {[%clk 0:02:41]} 12. O-O {[%clk 0:02:49]}  a4 {[%clk 0:02:38]} 13. e4 {[%clk 0:02:36]}  b4 {[%clk 0:02:32]} 14. e5 {[%clk 0:02:31]}  bxc3 {[%clk 0:02:31]} 15. exf6 {[%clk 0:02:24]}  Nxf6 {[%clk 0:02:28]} 16. bxc3 {[%clk 0:02:23]}  Ba6 {[%clk 0:02:26]} 17. Bxa6 {[%clk 0:02:21]}  Rxa6 {[%clk 0:02:27]} 18. Qf5 {[%clk 0:02:17]}  Be7 {[%clk 0:02:21]} 19. Ne5 {[%clk 0:02:14]}  Ne4 {[%clk 0:02:18]} 20. Bxe7 {[%clk 0:02:06]}  Qxe7 {[%clk 0:02:17]} 21. Rac1 {[%clk 0:02:06]}  c5 {[%clk 0:02:08]} 22. Qg4 {[%clk 0:01:50]}  Re6 {[%clk 0:01:45]} 23. f3 {[%clk 0:01:38]}  Nxc3 {[%clk 0:01:03]} 24. Rxc3 {[%clk 0:01:22]}  cxd4 {[%clk 0:01:02]} 25. Nc6 {[%clk 0:01:22]}  Qc7 {[%clk 0:00:58]} 26. Nxd4 {[%clk 0:01:15]}  Qxc3 {[%clk 0:00:56]} 27. Nxe6 {[%clk 0:01:16]}  Qe3+ {[%clk 0:00:55]} 28. Kh1 {[%clk 0:01:16]}  fxe6 {[%clk 0:00:54]} 29. Qxa4 {[%clk 0:01:17]}  d4 {[%clk 0:00:53]} 30. Qd1 {[%clk 0:01:13]}  Rc8 {[%clk 0:00:42]} 31. Re1 {[%clk 0:01:13]}  Qf4 {[%clk 0:00:40]} 32. Qb3 {[%clk 0:01:02]}  Rc1 {[%clk 0:00:33]} 33. Qxe6+ {[%clk 0:01:01]}  Kh7 {[%clk 0:00:32]} 34. Rxc1 {[%clk 0:00:50]}  Qxc1+ {[%clk 0:00:32]} 35. Kh2 {[%clk 0:00:51]}  Qf4+ {[%clk 0:00:33]} 36. Kg1 {[%clk 0:00:51]}  d3 {[%clk 0:00:31]} 37. Qe1 {[%clk 0:00:30]}  d2 {[%clk 0:00:18]} 38. Qd1 {[%clk 0:00:28]}  Qe3+ {[%clk 0:00:17]} 39. Kf1 {[%clk 0:00:28]}  Kg6 {[%clk 0:00:12]} 40. a4 {[%clk 0:00:17]}  Qd3+ {[%clk 0:00:12]} 41. Kf2 {[%clk 0:00:17]}  Qc3 {[%clk 0:00:08]} 42. Ke2 {[%clk 0:00:16]}  Qc4+ {[%clk 0:00:07]} 43. Kxd2 {[%clk 0:00:16]}  Qd4+ {[%clk 0:00:08]} 44. Ke2 {[%clk 0:00:16]}  Qc4+ {[%clk 0:00:04]} 45. Qd3+ {[%clk 0:00:16]} 1-0

[Event "December 12 Early 2023"]
[Site "https://www.chess.com"]
[Date "2023.12.12"]
[Round "7"]
[White "Souleidis, Georgios"]
[Black "Kovalevsky, Stanislav"]
[Result "0-1"]
[Board "85"]
[TimeControl "180+1"]
[WhiteFideId "4206827"]
[BlackFideId "13508598"]
[WhiteElo "2637"]
[BlackElo "2484"]
[WhiteTeam "GRE"]
[BlackTeam "FID"]
[WhiteClock "0:00:00"]
[BlackClock "0:00:33"]

1. e4 {[%clk 0:03:00]}  c6 {[%clk 0:02:59]} 2. Nc3 {[%clk 0:03:00]}  d5 {[%clk 0:02:59]} 3. Nf3 {[%clk 0:03:01]}  Bg4 {[%clk 0:02:59]} 4. h3 {[%clk 0:03:01]}  Bxf3 {[%clk 0:02:58]} 5. Qxf3 {[%clk 0:03:02]}  d4 {[%clk 0:02:55]} 6. Bc4 {[%clk 0:02:59]}  Nf6 {[%clk 0:02:55]} 7. Ne2 {[%clk 0:02:58]}  Nbd7 {[%clk 0:02:54]} 8. Bb3 {[%clk 0:02:23]}  a5 {[%clk 0:02:53]} 9. a3 {[%clk 0:02:15]}  a4 {[%clk 0:02:53]} 10. Ba2 {[%clk 0:02:15]}  Ne5 {[%clk 0:02:53]} 11. Qg3 {[%clk 0:02:10]}  Ra5 {[%clk 0:02:51]} 12. d3 {[%clk 0:02:07]}  Nh5 {[%clk 0:02:19]} 13. Qh2 {[%clk 0:02:08]}  e6 {[%clk 0:02:07]} 14. O-O {[%clk 0:02:03]}  Rc5 {[%clk 0:01:53]} 15. Bd2 {[%clk 0:01:21]}  Bd6 {[%clk 0:01:20]} 16. f4 {[%clk 0:01:12]}  Rxc2 {[%clk 0:01:19]} 17. fxe5 {[%clk 0:01:01]}  Rxd2 {[%clk 0:01:18]} 18. Rf2 {[%clk 0:00:42]}  Bc7 {[%clk 0:00:54]} 19. Raf1 {[%clk 0:00:21]}  O-O {[%clk 0:00:44]} 20. Nc1 {[%clk 0:00:13]}  Rxf2 {[%clk 0:00:40]} 21. Rxf2 {[%clk 0:00:14]}  Qg5 {[%clk 0:00:39]} 22. g4 {[%clk 0:00:06]}  Bxe5 {[%clk 0:00:35]} 23. Qg2 {[%clk 0:00:06]}  Qxc1+ {[%clk 0:00:34]} 24. Rf1 {[%clk 0:00:00]}  Qe3+ {[%clk 0:00:33]} 0-1

[Event "December 12 Early 2023"]
[Site "https://www.chess.com"]
[Date "2023.12.12"]
[Round "7"]
[White "Kochiev, Ivan"]
[Black "Boyer, Mahel"]
[Result "1-0"]
[Board "86"]
[TimeControl "180+1"]
[WhiteFideId "2917890"]
[BlackFideId "45102422"]
[WhiteElo "2474"]
[BlackElo "2630"]
[WhiteTeam "BUL"]
[BlackTeam "FRA"]
[WhiteClock "0:00:15"]
[BlackClock "0:00:05"]

1. e4 {[%clk 0:03:00]}  Nf6 {[%clk 0:01:16]} 2. e5 {[%clk 0:02:59]}  Ng8 {[%clk 0:01:17]} 3. d4 {[%clk 0:02:57]}  d6 {[%clk 0:01:17]} 4. exd6 {[%clk 0:02:58]}  exd6 {[%clk 0:01:16]} 5. c4 {[%clk 0:02:58]}  Nf6 {[%clk 0:01:15]} 6. Nf3 {[%clk 0:02:59]}  d5 {[%clk 0:01:14]} 7. c5 {[%clk 0:02:55]}  b6 {[%clk 0:01:02]} 8. cxb6 {[%clk 0:02:55]}  axb6 {[%clk 0:01:02]} 9. Nc3 {[%clk 0:02:55]}  Be7 {[%clk 0:00:33]} 10. Bd3 {[%clk 0:02:55]}  O-O {[%clk 0:00:34]} 11. h3 {[%clk 0:02:55]}  Ba6 {[%clk 0:00:33]} 12. O-O {[%clk 0:02:54]}  Bxd3 {[%clk 0:00:32]} 13. Qxd3 {[%clk 0:02:54]}  c6 {[%clk 0:00:28]} 14. Re1 {[%clk 0:02:52]}  Nbd7 {[%clk 0:00:24]} 15. Bf4 {[%clk 0:02:45]}  Re8 {[%clk 0:00:18]} 16. a3 {[%clk 0:02:41]}  b5 {[%clk 0:00:08]} 17. Re2 {[%clk 0:02:31]}  Bf8 {[%clk 0:00:06]} 18. Rae1 {[%clk 0:02:24]}  Rxe2 {[%clk 0:00:05]} 19. Rxe2 {[%clk 0:02:22]}  Qb6 {[%clk 0:00:04]} 20. Nd1 {[%clk 0:02:19]}  h6 {[%clk 0:00:03]} 21. Ne3 {[%clk 0:02:19]}  Re8 {[%clk 0:00:02]} 22. Nf5 {[%clk 0:02:17]}  Rxe2 {[%clk 0:00:03]} 23. Qxe2 {[%clk 0:02:18]}  Qd8 {[%clk 0:00:02]} 24. Ne5 {[%clk 0:02:09]}  Qe8 {[%clk 0:00:02]} 25. Qf3 {[%clk 0:02:00]}  Nxe5 {[%clk 0:00:03]} 26. Bxe5 {[%clk 0:02:00]}  Ne4 {[%clk 0:00:03]} 27. Qg4 {[%clk 0:01:40]}  f6 {[%clk 0:00:03]} 28. Bf4 {[%clk 0:01:34]}  Kh7 {[%clk 0:00:03]} 29. h4 {[%clk 0:01:33]}  h5 {[%clk 0:00:02]} 30. Qf3 {[%clk 0:01:29]}  Qg6 {[%clk 0:00:02]} 31. Ne3 {[%clk 0:01:17]}  Nd2 {[%clk 0:00:03]} 32. Qe2 {[%clk 0:01:14]}  Nc4 {[%clk 0:00:03]} 33. Nf1 {[%clk 0:01:09]}  Qf5 {[%clk 0:00:02]} 34. Bc1 {[%clk 0:01:01]}  Bd6 {[%clk 0:00:02]} 35. b3 {[%clk 0:00:59]}  Nxa3 {[%clk 0:00:02]} 36. Bxa3 {[%clk 0:00:48]}  Bxa3 {[%clk 0:00:02]} 37. Ng3 {[%clk 0:00:49]}  Qg4 {[%clk 0:00:02]} 38. Qc2+ {[%clk 0:00:42]}  Qg6 {[%clk 0:00:02]} 39. Qxc6 {[%clk 0:00:38]}  b4 {[%clk 0:00:01]} 40. Qxd5 {[%clk 0:00:37]}  Bb2 {[%clk 0:00:01]} 41. Nxh5 {[%clk 0:00:31]}  Qb1+ {[%clk 0:00:01]} 42. Kh2 {[%clk 0:00:29]}  Qg6 {[%clk 0:00:01]} 43. Nf4 {[%clk 0:00:27]}  Qg4 {[%clk 0:00:01]} 44. g3 {[%clk 0:00:20]}  Bc1 {[%clk 0:00:02]} 45. Qh5+ {[%clk 0:00:18]}  Qxh5 {[%clk 0:00:02]} 46. Nxh5 {[%clk 0:00:19]}  Kg6 {[%clk 0:00:02]} 47. Nf4+ {[%clk 0:00:19]}  Kf5 {[%clk 0:00:02]} 48. d5 {[%clk 0:00:15]}  Ke5 {[%clk 0:00:01]} 49. Nd3+ {[%clk 0:00:15]}  Kxd5 {[%clk 0:00:02]} 50. Nxc1 {[%clk 0:00:16]}  Kd4 {[%clk 0:00:02]} 51. g4 {[%clk 0:00:12]}  Kc3 {[%clk 0:00:03]} 52. f4 {[%clk 0:00:09]}  Kc2 {[%clk 0:00:03]} 53. Na2 {[%clk 0:00:09]}  Kxb3 {[%clk 0:00:02]} 54. Nxb4 {[%clk 0:00:10]}  Kxb4 {[%clk 0:00:02]} 55. h5 {[%clk 0:00:10]}  Kc5 {[%clk 0:00:02]} 56. g5 {[%clk 0:00:11]}  fxg5 {[%clk 0:00:02]} 57. fxg5 {[%clk 0:00:12]}  Kd6 {[%clk 0:00:03]} 58. h6 {[%clk 0:00:12]}  Ke7 {[%clk 0:00:02]} 59. h7 {[%clk 0:00:12]}  Kf7 {[%clk 0:00:03]} 60. h8=Q {[%clk 0:00:13]}  Kg6 {[%clk 0:00:04]} 61. Qh4 {[%clk 0:00:12]}  Kf5 {[%clk 0:00:04]} 62. Kg3 {[%clk 0:00:13]}  Kg6 {[%clk 0:00:04]} 63. Qg4 {[%clk 0:00:13]}  Kh7 {[%clk 0:00:04]} 64. Qh5+ {[%clk 0:00:13]}  Kg8 {[%clk 0:00:04]} 65. g6 {[%clk 0:00:14]}  Kf8 {[%clk 0:00:05]} 66. Qe5 {[%clk 0:00:14]}  Kg8 {[%clk 0:00:05]} 67. Qe8# {[%clk 0:00:15]} 1-0

[Event "December 12 Early 2023"]
[Site "https://www.chess.com"]
[Date "2023.12.12"]
[Round "7"]
[White "Ovetchkin, Roman"]
[Black "Kiremitciyan, Ari"]
[Result "1-0"]
[Board "88"]
[TimeControl "180+1"]
[WhiteFideId "4119991"]
[BlackFideId "6373445"]
[WhiteElo "2625"]
[BlackElo "2465"]
[WhiteTeam "RUS"]
[BlackTeam "TUR"]
[WhiteClock "0:00:04"]
[BlackClock "0:00:00"]

1. d4 {[%clk 0:03:00]}  d5 {[%clk 0:02:59]} 2. c4 {[%clk 0:03:00]}  e6 {[%clk 0:02:58]} 3. Nf3 {[%clk 0:03:00]}  Nf6 {[%clk 0:02:58]} 4. g3 {[%clk 0:03:00]}  Be7 {[%clk 0:02:58]} 5. Bg2 {[%clk 0:03:00]}  O-O {[%clk 0:02:58]} 6. O-O {[%clk 0:03:00]}  c6 {[%clk 0:02:59]} 7. Qc2 {[%clk 0:03:01]}  b6 {[%clk 0:02:59]} 8. Nbd2 {[%clk 0:03:01]}  Bb7 {[%clk 0:03:00]} 9. e4 {[%clk 0:02:59]}  Na6 {[%clk 0:03:00]} 10. e5 {[%clk 0:02:56]}  Nd7 {[%clk 0:02:59]} 11. cxd5 {[%clk 0:02:48]}  Nb4 {[%clk 0:02:58]} 12. Qb3 {[%clk 0:02:38]}  cxd5 {[%clk 0:02:52]} 13. a3 {[%clk 0:02:37]}  Nc6 {[%clk 0:02:49]} 14. Re1 {[%clk 0:02:34]}  Na5 {[%clk 0:02:45]} 15. Qd3 {[%clk 0:02:29]}  Qc8 {[%clk 0:02:40]} 16. Bf1 {[%clk 0:02:28]}  Nb8 {[%clk 0:02:39]} 17. Qe3 {[%clk 0:02:26]}  Ba6 {[%clk 0:02:36]} 18. h4 {[%clk 0:02:25]}  Bxf1 {[%clk 0:02:33]} 19. Nxf1 {[%clk 0:02:23]}  Qc2 {[%clk 0:01:59]} 20. Re2 {[%clk 0:02:20]}  Qb3 {[%clk 0:01:56]} 21. Qf4 {[%clk 0:02:01]}  Rc8 {[%clk 0:01:33]} 22. Qg4 {[%clk 0:01:49]}  Qd3 {[%clk 0:01:20]} 23. Re3 {[%clk 0:01:40]}  Qg6 {[%clk 0:01:19]} 24. Qh3 {[%clk 0:01:40]}  h5 {[%clk 0:01:15]} 25. b4 {[%clk 0:01:32]}  Nc4 {[%clk 0:01:12]} 26. Rc3 {[%clk 0:01:31]}  Nd7 {[%clk 0:01:07]} 27. Bg5 {[%clk 0:01:26]}  Bf8 {[%clk 0:00:54]} 28. g4 {[%clk 0:01:09]}  hxg4 {[%clk 0:00:52]} 29. Qxg4 {[%clk 0:01:10]}  b5 {[%clk 0:00:43]} 30. Rac1 {[%clk 0:00:37]}  a5 {[%clk 0:00:40]} 31. Ng3 {[%clk 0:00:35]}  axb4 {[%clk 0:00:32]} 32. h5 {[%clk 0:00:34]}  Qh7 {[%clk 0:00:32]} 33. axb4 {[%clk 0:00:33]}  Bxb4 {[%clk 0:00:27]} 34. R3c2 {[%clk 0:00:22]}  Ba3 {[%clk 0:00:18]} 35. h6 {[%clk 0:00:14]}  Bxc1 {[%clk 0:00:16]} 36. Rxc1 {[%clk 0:00:15]}  b4 {[%clk 0:00:06]} 37. Nh5 {[%clk 0:00:12]}  b3 {[%clk 0:00:03]} 38. Bf6 {[%clk 0:00:06]}  b2 {[%clk 0:00:02]} 39. Rf1 {[%clk 0:00:06]}  b1=Q {[%clk 0:00:02]} 40. Nxg7 {[%clk 0:00:05]}  Qbg6 {[%clk 0:00:00]} 41. Ng5 {[%clk 0:00:04]} 1-0

[Event "December 12 Early 2023"]
[Site "https://www.chess.com"]
[Date "2023.12.12"]
[Round "7"]
[White "Pak, Yevgeniy"]
[Black "NikaVolkov"]
[Result "1-0"]
[Board "91"]
[TimeControl "180+1"]
[WhiteFideId "14201712"]
[WhiteElo "2457"]
[BlackElo "2595"]
[WhiteTeam "KAZ"]
[WhiteClock "0:01:40"]
[BlackClock "0:01:19"]

1. e4 {[%clk 0:03:00]}  c5 {[%clk 0:02:59]} 2. d4 {[%clk 0:02:58]}  e6 {[%clk 0:02:58]} 3. d5 {[%clk 0:02:51]}  Nf6 {[%clk 0:02:57]} 4. Nc3 {[%clk 0:02:47]}  exd5 {[%clk 0:02:57]} 5. exd5 {[%clk 0:02:45]}  Bd6 {[%clk 0:02:58]} 6. Qe2+ {[%clk 0:02:38]}  Qe7 {[%clk 0:02:56]} 7. Nb5 {[%clk 0:02:36]}  Kd8 {[%clk 0:02:41]} 8. Qxe7+ {[%clk 0:02:31]}  Kxe7 {[%clk 0:02:22]} 9. Nf3 {[%clk 0:02:28]}  a6 {[%clk 0:02:19]} 10. Nxd6 {[%clk 0:02:22]}  Kxd6 {[%clk 0:02:20]} 11. Bf4+ {[%clk 0:02:19]}  Ke7 {[%clk 0:02:09]} 12. O-O-O {[%clk 0:02:15]}  h6 {[%clk 0:02:02]} 13. Re1+ {[%clk 0:02:10]}  Kd8 {[%clk 0:02:01]} 14. Bd6 {[%clk 0:02:04]}  Nxd5 {[%clk 0:01:51]} 15. Ne5 {[%clk 0:02:02]}  Rf8 {[%clk 0:01:22]} 16. Bxf8 {[%clk 0:01:59]}  Kc7 {[%clk 0:01:22]} 17. Nxf7 {[%clk 0:01:54]}  b6 {[%clk 0:01:22]} 18. Be2 {[%clk 0:01:47]}  Nc6 {[%clk 0:01:21]} 19. Bf3 {[%clk 0:01:47]}  Nf6 {[%clk 0:01:20]} 20. Bd6+ {[%clk 0:01:45]}  Kb7 {[%clk 0:01:20]} 21. Nd8+ {[%clk 0:01:45]}  Ka7 {[%clk 0:01:19]} 22. Nxc6+ {[%clk 0:01:40]} 1-0